bitfinex/quotes_BTCUSD_20220731
["timestamp","ask_amount","ask_price","bid_price","bid_amount"]
[1659257667716,0.75727698,23613.0,23612.0,1.18521182]
[1659257668377,0.75727698,23613.0,23612.0,1.24821182]
[1659257669087,0.75727698,23613.0,23612.0,1.29821182]
[1659257670414,0.75727698,23613.0,23612.0,1.36121182]
[1659257670865,0.75727698,23613.0,23612.0,1.23521182]
[1659257673717,0.75727698,23613.0,23612.0,1.18521182]
[1659257674421,0.75727698,23613.0,23612.0,1.24821182]
[1659257675117,0.75727698,23613.0,23612.0,1.29821182]
[1659257675330,0.75727698,23613.0,23612.0,1.36121182]
[1659257675577,0.75727698,23613.0,23612.0,1.23521182]
[1659257676493,0.75727698,23613.0,23612.0,1.30321182]
[1659257677188,0.75727698,23613.0,23612.0,1.23521182]
[1659257677653,0.75727698,23613.0,23612.0,1.18502354]
[1659257678406,0.75727698,23613.0,23612.0,0.88009754]
[1659257678651,0.75727698,23613.0,23612.0,1.25302354]
[1659257679789,0.75727698,23613.0,23612.0,1.18502354]
[1659257681486,0.7700755,23613.0,23612.0,0.40089754]
[1659257681726,0.7700755,23613.0,23612.0,0.46889754]
[1659257682412,0.7700755,23613.0,23612.0,0.54789754]
[1659257682856,0.76403495,23613.0,23612.0,0.54778751]
[1659257683103,0.75727698,23613.0,23612.0,0.47978751]
[1659257683368,0.75727698,23613.0,23612.0,0.40078751]
[1659257684058,0.7700755,23613.0,23612.0,0.40078751]
[1659257684548,0.75727698,23613.0,23612.0,0.47978751]
[1659257685490,0.75727698,23613.0,23612.0,0.47962751]
[1659257685735,0.75727698,23613.0,23612.0,0.40176357]
[1659257685967,0.75727698,23613.0,23612.0,0.40062751]
[1659257686425,0.75727698,23613.0,23612.0,0.47962751]
[1659257686650,0.7700755,23613.0,23612.0,0.47962751]
[1659257687132,0.75727698,23613.0,23612.0,0.47962751]
[1659257687355,0.75727698,23613.0,23612.0,0.50826012]
[1659257687577,0.75727698,23613.0,23612.0,0.47962751]
[1659257687808,0.75727698,23613.0,23612.0,0.40062751]
[1659257689776,0.75727698,23613.0,23612.0,0.47962751]
[1659257690766,0.75727698,23613.0,23612.0,0.55862751]
[1659257691249,0.78910698,23613.0,23612.0,0.159]
[1659257691482,0.75727698,23613.0,23612.0,0.159]
[1659257691700,0.75727698,23613.0,23612.0,0.001]
[1659257691998,0.88292198,23613.0,23612.0,0.001]
[1659257692477,0.88292198,23613.0,23612.0,0.079]
[1659257693213,0.88292198,23613.0,23612.0,0.10954292]
[1659257693214,0.75727698,23613.0,23612.0,0.10954292]
[1659257693429,0.75727698,23613.0,23612.0,0.079]
[1659257693647,0.75727698,23613.0,23612.0,0.078608]
[1659257693866,0.75727698,23613.0,23612.0,0.000608]
[1659257694558,0.75727698,23613.0,23612.0,0.078608]
[1659257695750,0.75727698,23613.0,23612.0,0.000608]
[1659257696185,0.75727698,23613.0,23612.0,0.01319387]
[1659257696420,0.75727698,23613.0,23612.0,0.000608]
[1659257696644,0.7700755,23613.0,23612.0,0.000608]
[1659257696858,0.75727698,23613.0,23612.0,0.000608]
[1659257697337,0.88292198,23613.0,23612.0,0.078608]
[1659257697542,0.7700755,23613.0,23612.0,0.078608]
[1659257697780,0.8957205,23613.0,23612.0,0.078608]
[1659257697995,0.88292198,23613.0,23612.0,0.078608]
[1659257698215,0.75727698,23613.0,23612.0,0.078608]
[1659257698430,0.75727698,23613.0,23612.0,0.156608]
[1659257698661,0.7700755,23613.0,23612.0,0.156608]
[1659257698894,0.75727698,23613.0,23612.0,0.156608]
[1659257699137,0.75727698,23613.0,23612.0,0.000608]
[1659257700564,0.75727698,23613.0,23612.0,0.078608]
[1659257701224,0.75727698,23613.0,23612.0,0.09149427]
[1659257702145,0.75727698,23613.0,23612.0,0.4987516]
[1659257702343,0.75727698,23613.0,23612.0,0.45129452]
[1659257702604,0.75727698,23613.0,23612.0,0.4987516]
[1659257703784,0.75727698,23613.0,23612.0,0.4207516]
[1659257704440,0.75727698,23613.0,23612.0,0.4987516]
[1659257704915,0.76331753,23613.0,23612.0,0.4987516]
[1659257705148,0.7700755,23613.0,23612.0,0.4987516]
[1659257705368,0.75727698,23613.0,23612.0,0.52929452]
[1659257705820,0.75727698,23613.0,23612.0,0.4207516]
[1659257706500,0.75727698,23613.0,23612.0,0.4987516]
[1659257707397,0.75727698,23613.0,23612.0,0.52929452]
[1659257707612,0.75727698,23613.0,23612.0,0.52738421]
[1659257707869,0.75727698,23613.0,23612.0,0.4987516]
[1659257708326,0.75727698,23613.0,23612.0,0.4207516]
[1659257708588,0.75727698,23613.0,23612.0,0.4987516]
[1659257709743,0.75727698,23613.0,23612.0,0.4207516]
[1659257709982,0.8957205,23613.0,23612.0,0.4207516]
[1659257710199,0.7700755,23613.0,23612.0,0.4207516]
[1659257710417,0.75727698,23613.0,23612.0,0.09149427]
[1659257710657,0.88292198,23613.0,23612.0,0.09149427]
[1659257710863,0.8957205,23613.0,23612.0,0.09149427]
[1659257711143,0.88292198,23613.0,23612.0,0.09149427]
[1659257711601,0.75727698,23613.0,23612.0,0.09149427]
[1659257711808,0.75727698,23613.0,23612.0,0.01349427]
[1659257712442,0.75727698,23613.0,23612.0,0.09149427]
[1659257713123,0.7700755,23613.0,23612.0,0.09149427]
[1659257713832,0.7700755,23613.0,23612.0,0.01349427]
[1659257714533,0.7700755,23613.0,23612.0,0.09149427]
[1659257714972,0.75727698,23613.0,23612.0,0.12203719]
[1659257715449,0.75727698,23613.0,23612.0,0.09149427]
[1659257715926,0.75727698,23613.0,23612.0,0.01349427]
[1659257716381,0.75727698,23613.0,23612.0,0.12203719]
[1659257716601,0.75727698,23613.0,23612.0,0.09149427]
[1659257718011,0.75717315,23613.0,23612.0,0.09149427]
[1659257718225,0.75717315,23613.0,23612.0,0.01349427]
[1659257719442,0.75717315,23613.0,23612.0,0.18694427]
[1659257719683,0.75717315,23613.0,23612.0,0.65684508]
[1659257719900,0.75717315,23613.0,23612.0,1.03484508]
[1659257720121,0.75717315,23613.0,23612.0,1.0222016]
[1659257720561,0.75717315,23613.0,23612.0,1.1002016]
[1659257720994,0.75717315,23613.0,23612.0,0.9442016]
[1659257722561,0.75717315,23613.0,23612.0,1.0232016]
[1659257722797,0.75717315,23613.0,23612.0,0.6287516]
[1659257723514,0.75717315,23613.0,23612.0,0.4997516]
[1659257725787,0.75717315,23613.0,23612.0,0.4207516]
[1659257726490,0.75717315,23613.0,23612.0,0.4997516]
[1659257727871,0.75717315,23613.0,23612.0,0.4207516]
[1659257728815,0.75717315,23613.0,23612.0,0.7707516]
[1659257729249,0.75717315,23613.0,23612.0,0.8497516]
[1659257730125,0.75717315,23613.0,23612.0,0.4997516]
[1659257730338,0.75717315,23613.0,23612.0,0.8497516]
[1659257731009,0.75717315,23613.0,23612.0,0.7997516]
[1659257731232,0.75717315,23613.0,23612.0,0.49958669]
[1659257731461,0.75717315,23613.0,23612.0,0.79958669]
[1659257731694,0.75717315,23613.0,23612.0,0.72058669]
[1659257731925,0.75717315,23613.0,23612.0,0.77058669]
[1659257732599,0.75717315,23613.0,23612.0,0.84958669]
[1659257732832,0.75717315,23613.0,23612.0,0.79958669]
[1659257733292,0.75717315,23613.0,23612.0,0.84958669]
[1659257733545,0.75717315,23613.0,23612.0,0.49958669]
[1659257733771,0.75717315,23613.0,23612.0,0.84958669]
[1659257734022,0.75717315,23613.0,23612.0,0.42058669]
[1659257734466,0.75717315,23613.0,23612.0,0.49958669]
[1659257735192,0.75717315,23613.0,23612.0,0.09232936]
[1659257735910,0.76997167,23613.0,23612.0,0.01332936]
[1659257736621,0.76997167,23613.0,23612.0,0.09232936]
[1659257737074,0.89561667,23613.0,23612.0,0.09232936]
[1659257737734,0.88281815,23613.0,23612.0,0.01332936]
[1659257737989,0.75717315,23613.0,23612.0,0.01332936]
[1659257738429,0.75717315,23613.0,23612.0,0.09232936]
[1659257739887,0.75717315,23613.0,23612.0,0.01332936]
[1659257740568,0.75717315,23613.0,23612.0,0.09232936]
[1659257741740,0.75717315,23613.0,23612.0,0.01332936]
[1659257742436,0.75717315,23613.0,23612.0,0.09232936]
[1659257743150,0.75717315,23613.0,23612.0,0.49958669]
[1659257743370,0.75717315,23613.0,23612.0,0.5282193]
[1659257743596,0.75717315,23613.0,23612.0,0.5782193]
[1659257743814,0.75717315,23613.0,23612.0,0.7992193]
[1659257744050,0.75717315,23613.0,23612.0,0.7492193]
[1659257744494,0.75717315,23613.0,23612.0,0.8282193]
[1659257745154,0.75717315,23613.0,23612.0,1.0066193]
[1659257745857,0.75717315,23613.0,23612.0,0.9276193]
[1659257746541,0.75717315,23613.0,23612.0,1.00852961]
[1659257747871,0.75717315,23613.0,23612.0,0.92952961]
[1659257748322,0.75717315,23613.0,23612.0,0.57952961]
[1659257748539,0.75717315,23613.0,23612.0,0.65852961]
[1659257749743,0.75717315,23613.0,23612.0,1.00852961]
[1659257751791,0.73777964,23613.0,23612.0,0.92952961]
[1659257752438,0.73777964,23613.0,23612.0,1.00852961]
[1659257752667,0.73777964,23613.0,23612.0,0.9566193]
[1659257752894,0.73777964,23613.0,23612.0,0.62798669]
[1659257753375,0.73777964,23613.0,23612.0,0.49958669]
[1659257753831,0.73777964,23613.0,23612.0,0.40770042]
[1659257754499,0.73777964,23613.0,23612.0,0.48670042]
[1659257755172,0.75057816,23613.0,23612.0,0.48670042]
[1659257755661,0.73777964,23613.0,23612.0,0.48670042]
[1659257755945,0.73777964,23613.0,23612.0,0.43633303]
[1659257756190,0.73777964,23613.0,23612.0,0.40770042]
[1659257756421,0.75057816,23613.0,23612.0,0.48670042]
[1659257756859,0.73777964,23613.0,23612.0,0.48670042]
[1659257757755,0.73777964,23613.0,23612.0,0.40770042]
[1659257758483,0.73777964,23613.0,23612.0,0.48670042]
[1659257760098,0.86342464,23613.0,23612.0,0.48670042]
[1659257760320,0.86342464,23613.0,23612.0,0.40770042]
[1659257760580,0.73777964,23613.0,23612.0,0.48670042]
[1659257761759,0.73777964,23613.0,23612.0,0.40770042]
[1659257762214,0.73777964,23613.0,23612.0,0.53610042]
[1659257762448,0.73777964,23613.0,23612.0,0.61510042]
[1659257762674,0.73777964,23613.0,23612.0,0.96510042]
[1659257763861,0.73777964,23613.0,23612.0,0.88610042]
[1659257764530,0.73777964,23613.0,23612.0,0.96510042]
[1659257765019,0.73777964,23613.0,23612.0,0.91510042]
[1659257765240,0.73777964,23613.0,23612.0,0.96510042]
[1659257765465,0.73777964,23613.0,23612.0,1.01510042]
[1659257765944,0.73777964,23613.0,23612.0,0.88610042]
[1659257766409,0.73777964,23613.0,23612.0,0.96510042]
[1659257766851,0.73777964,23613.0,23612.0,0.96701073]
[1659257767750,0.73777964,23613.0,23612.0,0.53610042]
[1659257768457,0.73777964,23613.0,23612.0,0.61510042]
[1659257769909,0.73777964,23613.0,23612.0,0.53610042]
[1659257770393,0.73777964,23613.0,23612.0,0.61510042]
[1659257770632,0.73777964,23613.0,23612.0,0.91701073]
[1659257770855,0.73777964,23613.0,23612.0,0.61510042]
[1659257772189,0.73767521,23613.0,23612.0,0.61510042]
[1659257773782,0.73767521,23613.0,23612.0,0.53610042]
[1659257774446,0.73767521,23613.0,23612.0,0.61510042]
[1659257775744,0.73767521,23613.0,23612.0,0.53610042]
[1659257776368,0.73767521,23613.0,23612.0,0.65310042]
[1659257777361,0.73767521,23613.0,23612.0,0.95310042]
[1659257777588,0.73767521,23613.0,23612.0,0.57410042]
[1659257777813,0.73767521,23613.0,23612.0,0.92410042]
[1659257778452,0.73767521,23613.0,23612.0,1.00310042]
[1659257779311,0.73767521,23613.0,23612.0,1.00345697]
[1659257779746,0.73767521,23613.0,23612.0,0.92445697]
[1659257780449,0.73767521,23613.0,23612.0,1.00345697]
[1659257781584,0.73767521,23613.0,23612.0,0.92445697]
[1659257782466,0.73767521,23613.0,23612.0,1.00345697]
[1659257783627,0.73767521,23613.0,23612.0,0.92445697]
[1659257784315,0.73767521,23613.0,23612.0,1.00345697]
[1659257785690,0.73767521,23613.0,23612.0,0.92445697]
[1659257786388,0.73767521,23613.0,23612.0,1.00345697]
[1659257787817,0.73767521,23613.0,23612.0,0.92445697]
[1659257789414,0.73767521,23613.0,23612.0,1.00345697]
[1659257789415,0.73267521,23613.0,23612.0,1.00345697]
[1659257790297,0.73267521,23613.0,23612.0,0.95345697]
[1659257790544,0.73267521,23613.0,23612.0,1.00345697]
[1659257791912,0.73267521,23613.0,23612.0,0.92445697]
[1659257792344,0.72767521,23613.0,23612.0,0.92445697]
[1659257792594,0.72767521,23613.0,23612.0,1.00345697]
[1659257794191,0.72767521,23613.0,23612.0,0.92445697]
[1659257794473,0.72767521,23613.0,23612.0,1.00345697]
[1659257794688,0.72267521,23613.0,23612.0,1.00345697]
[1659257795124,0.72267521,23613.0,23612.0,1.05345697]
[1659257795834,0.72267521,23613.0,23612.0,0.97445697]
[1659257796063,0.72267521,23613.0,23612.0,0.92445697]
[1659257796534,0.72267521,23613.0,23612.0,1.00345697]
[1659257797238,0.71767521,23613.0,23612.0,1.00345697]
[1659257797891,0.71767521,23613.0,23612.0,0.92445697]
[1659257798770,0.71767521,23613.0,23612.0,1.00345697]
[1659257799480,0.71267521,23613.0,23612.0,1.00345697]
[1659257799728,0.71267521,23613.0,23612.0,1.05345697]
[1659257800167,0.71267521,23613.0,23612.0,0.92445697]
[1659257800400,0.71267521,23613.0,23612.0,1.00345697]
[1659257800838,0.71267521,23613.0,23612.0,1.05345697]
[1659257801417,0.71267521,23613.0,23612.0,1.35838297]
[1659257801907,0.71267521,23613.0,23612.0,1.27938297]
[1659257802391,0.70767521,23613.0,23612.0,1.27938297]
[1659257802631,0.70767521,23613.0,23612.0,1.35838297]
[1659257803792,0.70767521,23613.0,23612.0,1.27938297]
[1659257804484,0.70767521,23613.0,23612.0,1.35838297]
[1659257805850,0.70767521,23613.0,23612.0,1.27938297]
[1659257806532,0.70767521,23613.0,23612.0,1.35838297]
[1659257807739,0.70767521,23613.0,23612.0,1.27938297]
[1659257809336,0.70767521,23613.0,23612.0,1.35838297]
[1659257810063,0.70767521,23613.0,23612.0,1.30802642]
[1659257810305,0.70767521,23613.0,23612.0,0.52470042]
[1659257811696,0.70767521,23613.0,23612.0,0.44570042]
[1659257812410,0.70767521,23613.0,23612.0,0.52470042]
[1659257813805,0.83332021,23613.0,23612.0,0.44570042]
[1659257814054,0.70767521,23613.0,23612.0,0.44570042]
[1659257814484,0.70767521,23613.0,23612.0,0.52470042]
[1659257815887,0.70767521,23613.0,23612.0,0.44570042]
[1659257816104,0.70767521,23613.0,23612.0,0.47433303]
[1659257816398,0.70767521,23613.0,23612.0,0.44570042]
[1659257816623,0.70767521,23613.0,23612.0,0.52470042]
[1659257817550,0.83332021,23613.0,23612.0,0.11744309]
[1659257817776,0.83332021,23613.0,23612.0,0.03844309]
[1659257818483,0.89815021,23613.0,23612.0,0.11644309]
[1659257818729,0.89815021,23613.0,23610.0,0.01]
[1659257818730,0.85100687,23611.0,23610.0,0.01]
[1659257818998,0.05100687,23606.0,23605.0,0.00013255]
[1659257819236,0.18269242,23606.0,23605.0,0.00013255]
[1659257819452,0.06380539,23606.0,23599.0,0.3828]
[1659257819920,0.06380539,23606.0,23600.0,0.40725733]
[1659257820516,0.10480539,23606.0,23600.0,0.40725733]
[1659257820973,0.10480539,23606.0,23600.0,0.41990081]
[1659257821170,0.10480539,23606.0,23601.0,0.40725733]
[1659257821531,0.10480539,23606.0,23601.0,0.45725733]
[1659257821918,0.125645,23605.0,23602.0,0.70725733]
[1659257822133,0.06380539,23606.0,23602.0,0.70725733]
[1659257822394,0.125645,23605.0,23602.0,0.40725733]
[1659257823264,0.125645,23605.0,23600.0,0.40725733]
[1659257823487,0.17264539,23606.0,23600.0,0.45725733]
[1659257823714,0.14080539,23606.0,23601.0,0.70725733]
[1659257823942,0.14080539,23606.0,23602.0,0.40725733]
[1659257824429,0.13564539,23606.0,23601.0,0.70725733]
[1659257824651,0.125645,23605.0,23601.0,0.40725733]
[1659257824872,0.10380539,23606.0,23601.0,0.40725733]
[1659257825097,0.22945039,23606.0,23601.0,0.40725733]
[1659257825751,0.18945039,23606.0,23601.0,0.40725733]
[1659257826439,0.23945039,23606.0,23601.0,0.40725733]
[1659257826898,0.11380539,23606.0,23601.0,0.40725733]
[1659257828269,0.06380539,23606.0,23601.0,0.40725733]
[1659257828483,0.11380539,23606.0,23601.0,0.40725733]
[1659257829212,0.14564539,23606.0,23601.0,0.40725733]
[1659257829444,0.125645,23605.0,23601.0,0.40725733]
[1659257829663,0.11380539,23606.0,23601.0,0.40725733]
[1659257830132,0.14564539,23606.0,23601.0,0.40725733]
[1659257830357,0.11380539,23606.0,23601.0,0.40725733]
[1659257831751,0.06380539,23606.0,23601.0,0.40725733]
[1659257832441,0.11880539,23606.0,23601.0,0.40725733]
[1659257832934,0.11880539,23606.0,23601.0,0.45725733]
[1659257833185,0.11880539,23606.0,23602.0,0.3]
[1659257833423,0.11880539,23606.0,23601.0,0.40725733]
[1659257833643,0.125645,23605.0,23601.0,0.40725733]
[1659257833866,0.06380539,23606.0,23601.0,0.40725733]
[1659257834552,0.11880539,23606.0,23601.0,0.45725733]
[1659257835225,0.11880539,23606.0,23601.0,0.40725733]
[1659257835899,0.06380539,23606.0,23601.0,0.40725733]
[1659257837080,0.06380539,23606.0,23599.0,0.40725733]
[1659257837081,0.05,23604.0,23599.0,0.40725733]
[1659257837540,0.125645,23604.0,23599.0,0.40725733]
[1659257837761,0.38165742,23604.0,23599.0,0.40725733]
[1659257837985,0.25601242,23604.0,23599.0,0.40725733]
[1659257838267,0.125645,23603.0,23599.0,0.40725733]
[1659257838495,0.31901242,23604.0,23598.0,0.40725733]
[1659257838724,0.31901242,23604.0,23596.0,0.31272847]
[1659257838725,0.05100687,23599.0,23596.0,0.01272847]
[1659257838955,0.05100687,23598.0,23597.0,0.40725733]
[1659257839184,0.05100687,23598.0,23596.0,0.01272847]
[1659257839185,0.17665187,23598.0,23596.0,0.40725733]
[1659257839416,0.05100687,23597.0,23592.0,0.40725733]
[1659257839636,0.05100687,23597.0,23594.0,0.01244016]
[1659257839857,0.05100687,23597.0,23595.0,0.43780025]
[1659257840077,0.01279852,23598.0,23595.0,0.40725733]
[1659257840301,0.125645,23597.0,23595.0,0.40725733]
[1659257840542,0.038,23597.0,23595.0,0.40725733]
[1659257840989,0.038,23597.0,23592.0,0.40725733]
[1659257842208,0.038,23597.0,23591.0,0.45506947]
[1659257842209,0.44525733,23597.0,23591.0,0.45506947]
[1659257842443,0.05100687,23593.0,23590.0,0.0031]
[1659257842684,0.91475233,23596.0,23590.0,0.0031]
[1659257842685,0.78910733,23596.0,23590.0,0.0031]
[1659257842919,0.99152093,23594.0,23590.0,0.41035733]
[1659257843156,0.074,23597.0,23591.0,0.43588994]
[1659257843385,0.074,23597.0,23592.0,0.53575733]
[1659257843602,0.074,23597.0,23593.0,0.40725733]
[1659257843835,0.074,23597.0,23594.0,0.3]
[1659257844063,0.074,23597.0,23594.0,0.43710516]
[1659257844346,0.074,23597.0,23595.0,0.3]
[1659257844531,0.115,23597.0,23595.0,0.3]
[1659257844779,0.115,23597.0,23594.0,0.45725733]
[1659257845713,0.115,23597.0,23594.0,0.40725733]
[1659257845936,0.115,23597.0,23596.0,1.0785]
[1659257846185,0.115,23597.0,23596.0,2.56412533]
[1659257846408,0.156,23597.0,23596.0,2.56412533]
[1659257846629,0.156,23597.0,23596.0,2.57676881]
[1659257848498,0.172,23597.0,23596.0,2.65176881]
[1659257848732,0.172,23597.0,23596.0,1.70176881]
[1659257850580,0.188,23597.0,23596.0,1.78944857]
[1659257852622,0.188,23597.0,23596.0,1.86444857]
[1659257852825,0.204,23597.0,23596.0,1.86444857]
[1659257853603,0.204,23597.0,23596.0,1.85180509]
[1659257854502,0.22,23597.0,23596.0,1.92680509]
[1659257854723,0.146,23597.0,23596.0,1.92680509]
[1659257854949,0.3,23605.0,23596.0,1.62680509]
[1659257855195,0.3,23605.0,23598.0,0.1785]
[1659257855425,0.3,23605.0,23599.0,0.61897933]
[1659257855426,0.125645,23604.0,23599.0,0.61897933]
[1659257855650,0.3,23603.0,23600.0,0.40725733]
[1659257855863,0.13844352,23602.0,23600.0,0.40725733]
[1659257856100,0.3,23605.0,23600.0,0.40725733]
[1659257856304,0.125645,23604.0,23600.0,0.40725733]
[1659257856522,0.038,23602.0,23600.0,0.40725733]
[1659257856737,0.038,23602.0,23600.0,0.43780025]
[1659257856956,0.038,23602.0,23601.0,0.40725733]
[1659257857201,0.125645,23602.0,23601.0,0.40725733]
[1659257857834,0.125645,23602.0,23596.0,0.06267976]
[1659257857835,0.43844352,23602.0,23596.0,0.06267976]
[1659257858075,0.01279852,23602.0,23597.0,0.40725733]
[1659257858295,0.04979852,23602.0,23597.0,0.40725733]
[1659257858981,0.01279852,23602.0,23597.0,0.40725733]
[1659257859410,0.01279852,23602.0,23597.0,0.45725733]
[1659257859623,0.01279852,23602.0,23598.0,0.40725733]
[1659257860317,0.04979852,23602.0,23598.0,0.40725733]
[1659257861187,0.01279852,23602.0,23598.0,0.40725733]
[1659257864571,0.01279852,23602.0,23599.0,0.00191031]
[1659257864789,0.20444352,23602.0,23598.0,0.40725733]
[1659257864993,0.07879852,23602.0,23598.0,0.40725733]
[1659257865250,0.14479852,23602.0,23598.0,0.40725733]
[1659257865690,0.14468723,23602.0,23598.0,0.40725733]
[1659257866121,0.01268723,23602.0,23598.0,0.40725733]
[1659257866542,0.05,23603.0,23599.0,0.02863261]
[1659257867190,0.125645,23602.0,23598.0,0.40725733]
[1659257867412,0.05,23603.0,23598.0,0.40725733]
[1659257867647,0.125645,23602.0,23598.0,0.40725733]
[1659257868763,0.35,23603.0,23598.0,0.40725733]
[1659257868967,0.125645,23602.0,23598.0,0.40725733]
[1659257869423,0.125645,23602.0,23599.0,0.02863261]
[1659257869648,0.125645,23602.0,23599.0,0.24035561]
[1659257869866,0.97604,23606.0,23599.0,0.66945561]
[1659257870084,0.53290233,23605.0,23599.0,0.66945561]
[1659257870287,0.066,23602.0,23599.0,0.66945561]
[1659257870494,0.066,23602.0,23599.0,0.36945561]
[1659257870729,0.132,23602.0,23600.0,0.3]
[1659257871358,0.132,23602.0,23600.0,0.75725733]
[1659257871564,0.8942,23606.0,23600.0,0.70725733]
[1659257871783,0.125645,23605.0,23600.0,0.70725733]
[1659257872013,0.8942,23606.0,23600.0,0.40725733]
[1659257872232,0.125645,23605.0,23600.0,0.40725733]
[1659257872461,0.066,23605.0,23600.0,0.40725733]
[1659257872686,0.125645,23604.0,23600.0,0.40725733]
[1659257873806,0.8942,23606.0,23600.0,0.40725733]
[1659257874021,0.125645,23605.0,23600.0,0.45725733]
[1659257874235,0.8942,23606.0,23600.0,0.40725733]
[1659257874454,0.125645,23605.0,23600.0,0.40725733]
[1659257874677,0.99604,23606.0,23600.0,0.40725733]
[1659257874906,0.125645,23605.0,23600.0,0.40725733]
[1659257875152,0.99604,23606.0,23600.0,0.40725733]
[1659257875377,0.125645,23605.0,23600.0,0.40725733]
[1659257875583,0.92604,23606.0,23600.0,0.40725733]
[1659257875796,0.125645,23605.0,23600.0,0.40725733]
[1659257876021,0.92604,23606.0,23600.0,0.40725733]
[1659257876230,0.125645,23605.0,23600.0,0.40725733]
[1659257876446,0.066,23605.0,23600.0,0.40725733]
[1659257876663,0.191645,23605.0,23600.0,0.40725733]
[1659257876890,0.066,23605.0,23600.0,0.40725733]
[1659257877101,0.125645,23604.0,23600.0,0.40725733]
[1659257877321,0.01268723,23603.0,23600.0,0.40725733]
[1659257877538,0.26870724,23603.0,23600.0,0.40725733]
[1659257877976,0.125645,23602.0,23600.0,0.40725733]
[1659257878259,0.33470724,23603.0,23600.0,0.43588994]
[1659257878460,0.33470724,23603.0,23601.0,0.304926]
[1659257878682,0.125645,23602.0,23600.0,0.43588994]
[1659257878901,0.32202001,23603.0,23600.0,0.43588994]
[1659257879133,0.125645,23602.0,23600.0,0.43588994]
[1659257879351,0.066,23603.0,23600.0,0.43588994]
[1659257879558,0.125645,23602.0,23601.0,0.0020216]
[1659257879764,0.8942,23606.0,23601.0,0.0020216]
[1659257879972,0.125645,23605.0,23601.0,0.0020216]
[1659257880194,0.8942,23606.0,23601.0,0.0020216]
[1659257880398,0.01268723,23604.0,23601.0,0.0020216]
[1659257880838,0.125645,23603.0,23600.0,0.43588994]
[1659257881063,0.125645,23603.0,23600.0,0.40725733]
[1659257881487,0.01268723,23604.0,23600.0,0.43769663]
[1659257881691,0.99604,23606.0,23600.0,0.43769663]
[1659257881692,0.125645,23605.0,23600.0,0.43769663]
[1659257881906,0.8942,23606.0,23600.0,0.43769663]
[1659257882146,0.125645,23605.0,23600.0,0.40725733]
[1659257882372,0.066,23605.0,23600.0,0.40725733]
[1659257882610,0.125645,23604.0,23597.0,0.3763]
[1659257882823,0.125645,23604.0,23597.0,0.78355733]
[1659257882824,0.3,23604.0,23597.0,0.78355733]
[1659257883070,0.125645,23603.0,23597.0,0.83355733]
[1659257883280,0.3,23604.0,23598.0,0.40725733]
[1659257883519,0.125645,23603.0,23599.0,0.3]
[1659257883716,0.3,23604.0,23597.0,0.9996]
[1659257883717,0.3,23604.0,23600.0,0.40725733]
[1659257883937,0.125645,23603.0,23600.0,0.40725733]
[1659257884142,0.92604,23606.0,23600.0,0.40725733]
[1659257884348,0.064,23604.0,23600.0,0.40725733]
[1659257884793,0.064,23604.0,23601.0,0.0302171]
[1659257885225,0.13833223,23603.0,23600.0,0.40725733]
[1659257885669,0.01268723,23603.0,23600.0,0.40725733]
[1659257885875,0.125645,23602.0,23600.0,0.40725733]
[1659257886514,0.125645,23602.0,23600.0,0.4374745]
[1659257887165,0.066,23603.0,23600.0,0.4374745]
[1659257887382,0.125645,23602.0,23600.0,0.4374745]
[1659257887575,0.066,23603.0,23600.0,0.4374745]
[1659257887783,0.125645,23602.0,23600.0,0.4374745]
[1659257888011,0.8942,23606.0,23603.0,0.00011091]
[1659257888221,0.125645,23605.0,23603.0,0.00011091]
[1659257888490,0.05091631,23604.0,23603.0,0.00011091]
[1659257888711,0.125645,23604.0,23603.0,0.00061212]
[1659257889142,0.125645,23604.0,23603.0,0.00011091]
[1659257890467,0.173645,23604.0,23603.0,0.00011091]
[1659257891769,0.125645,23604.0,23603.0,0.00011091]
[1659257892403,0.173645,23604.0,23603.0,0.00011091]
[1659257893930,0.173645,23604.0,23603.0,0.00213251]
[1659257894147,0.125645,23604.0,23603.0,0.00011091]
[1659257894359,0.173645,23604.0,23603.0,0.00011091]
[1659257895018,0.173645,23604.0,23603.0,0.03576512]
[1659257895220,0.173645,23604.0,23603.0,0.00225291]
[1659257895646,0.125645,23604.0,23603.0,0.00225291]
[1659257896336,0.173645,23604.0,23603.0,0.00225291]
[1659257897678,0.92604,23606.0,23603.0,0.00225291]
[1659257897840,0.50091631,23604.0,23603.0,0.00225291]
[1659257898282,0.62656131,23604.0,23603.0,0.00225291]
[1659257900026,1.03381864,23604.0,23603.0,0.00225291]
[1659257900269,0.05,23601.0,23596.0,0.00012368]
[1659257900500,0.05091631,23597.0,23596.0,0.00012368]
[1659257900734,0.17656131,23597.0,23596.0,0.00012368]
[1659257900942,0.58381864,23597.0,23590.0,0.0031]
[1659257901206,0.40725733,23596.0,23590.0,0.0031]
[1659257901429,0.05091631,23591.0,23590.0,0.0031]
[1659257901668,0.05860354,23591.0,23590.0,0.0031]
[1659257901887,0.00768723,23591.0,23590.0,0.0031]
[1659257902119,0.13333223,23591.0,23590.0,0.0031]
[1659257902335,0.16933223,23591.0,23590.0,0.0031]
[1659257903901,0.05213723,23591.0,23590.0,0.0031]
[1659257904584,0.22678223,23591.0,23590.0,0.0031]
[1659257905782,0.17778223,23591.0,23590.0,0.0031]
[1659257906468,0.22278223,23591.0,23590.0,0.0031]
[1659257907696,0.170645,23591.0,23590.0,0.03673261]
[1659257907936,0.170645,23591.0,23590.0,0.0031]
[1659257908397,0.170645,23591.0,23590.0,0.04755]
[1659257908398,0.037,23591.0,23590.0,0.04755]
[1659257908629,0.037,23591.0,23590.0,0.50108342]
[1659257908855,0.037,23591.0,23590.0,0.80108342]
[1659257909076,0.037,23591.0,23590.0,0.75663342]
[1659257909529,0.037,23591.0,23590.0,0.42300081]
[1659257909750,1.1918,23595.0,23590.0,0.42300081]
[1659257910015,0.125645,23594.0,23590.0,0.41035733]
[1659257910283,0.567,23595.0,23590.0,0.41035733]
[1659257910501,0.125645,23594.0,23590.0,0.41035733]
[1659257910734,0.604,23595.0,23590.0,0.41035733]
[1659257910974,0.125645,23594.0,23590.0,0.41035733]
[1659257911205,0.00768723,23593.0,23590.0,0.41035733]
[1659257911422,0.125645,23592.0,23590.0,0.41035733]
[1659257911645,0.604,23595.0,23590.0,0.41035733]
[1659257911870,0.125645,23594.0,23590.0,0.41035733]
[1659257912095,0.567,23595.0,23590.0,0.41035733]
[1659257912323,0.125645,23594.0,23590.0,0.41035733]
[1659257912566,0.604,23595.0,23590.0,0.41035733]
[1659257912936,0.125645,23594.0,23590.0,0.41035733]
[1659257912938,0.125645,23594.0,23590.0,0.40535733]
[1659257913164,0.604,23595.0,23590.0,0.40535733]
[1659257913338,0.125645,23594.0,23590.0,0.40535733]